bitfinex/quotes_BTCUSD_20250428
["timestamp","ask_amount","ask_price","bid_price","bid_amount"]
[1745806856357,0.00046988,93436.0,93435.0,0.68172493]
[1745806856773,0.00046988,93436.0,93435.0,0.67772493]
[1745806856996,0.00046988,93436.0,93435.0,0.68853933]
[1745806857177,0.00046988,93436.0,93435.0,0.69253933]
[1745806857741,0.00046988,93436.0,93435.0,0.69553933]
[1745806857940,0.00046988,93436.0,93435.0,0.69253933]
[1745806858293,0.00046988,93436.0,93435.0,0.69653933]
[1745806859094,0.00046988,93436.0,93435.0,0.70456885]
[1745806859865,0.00046988,93436.0,93435.0,0.70444885]
[1745806861168,0.00046988,93436.0,93435.0,0.6471354]
[1745806862055,0.00046988,93436.0,93435.0,0.6391354]
[1745806862201,0.00046988,93436.0,93435.0,0.6431354]
[1745806862395,0.00046988,93436.0,93435.0,0.6461354]
[1745806862615,0.00046988,93436.0,93435.0,0.6431354]
[1745806862820,0.00046988,93436.0,93435.0,0.70652598]
[1745806863023,0.00046988,93436.0,93435.0,1.09442598]
[1745806863219,0.00046988,93436.0,93435.0,1.13972598]
[1745806863475,0.00046988,93436.0,93435.0,1.14272598]
[1745806864601,0.00046988,93436.0,93435.0,1.14072598]
[1745806864785,0.00046988,93436.0,93435.0,1.14172598]
[1745806864965,0.00046988,93436.0,93435.0,1.14572598]
[1745806869466,0.004,93449.0,93436.0,0.01454085]
[1745806869682,0.004,93449.0,93438.0,0.01454085]
[1745806869877,0.004,93449.0,93439.0,0.12357105]
[1745806870284,0.004,93449.0,93439.0,0.13182561]
[1745806871320,0.004,93449.0,93439.0,0.13282561]
[1745806872361,0.004,93449.0,93439.0,0.13982561]
[1745806872566,0.004,93449.0,93439.0,0.20521619]
[1745806873153,0.053,93449.0,93439.0,0.20521619]
[1745806873353,0.053,93449.0,93439.0,0.20307613]
[1745806873556,0.053,93449.0,93439.0,0.30175613]
[1745806879477,0.2,93447.0,93439.0,0.12947541]
[1745806879676,0.0463,93443.0,93439.0,0.11493456]
[1745806879880,0.02049728,93440.0,93439.0,0.03079541]
[1745806880704,0.02049728,93440.0,93439.0,0.02679541]
[1745806880913,0.02049728,93440.0,93439.0,0.02579541]
[1745806881125,0.02049728,93440.0,93439.0,0.08776783]
[1745806881423,0.02049728,93440.0,93439.0,0.08576783]
[1745806881645,0.02049728,93440.0,93439.0,0.08776783]
[1745806883145,0.02049728,93440.0,93439.0,0.18644783]
[1745806885251,0.02049728,93440.0,93439.0,0.12647541]
[1745806887510,0.02049728,93440.0,93439.0,0.11193456]
[1745806888288,0.02049728,93440.0,93439.0,0.10993456]
[1745806888517,0.0004242,93440.0,93439.0,0.10793456]
[1745806888688,0.02048726,93440.0,93439.0,0.10793456]
[1745806889429,0.02048726,93440.0,93439.0,0.12452359]
[1745806892590,0.02048726,93440.0,93439.0,0.13906444]
[1745806894755,0.02048726,93440.0,93439.0,0.04038444]
[1745806894938,0.02048726,93440.0,93439.0,0.13894444]
[1745806895402,0.0004242,93440.0,93439.0,0.13894444]
[1745806898267,0.0004242,93440.0,93439.0,0.24583458]
[1745806898468,0.0004242,93440.0,93439.0,0.29592378]
[1745806898920,0.0004242,93440.0,93439.0,0.29692378]
[1745806899998,0.0004242,93440.0,93439.0,0.29592378]
[1745806900433,0.0004242,93440.0,93439.0,0.25283458]
[1745806901032,0.0004242,93440.0,93439.0,0.65563548]
[1745806901206,0.0004242,93440.0,93439.0,0.70073548]
[1745806901572,0.0004242,93440.0,93439.0,0.70173548]
[1745806904482,0.0004242,93440.0,93439.0,0.42005546]
[1745806904865,0.0004242,93440.0,93439.0,0.43459631]
[1745806905227,0.0004242,93440.0,93439.0,0.43159631]
[1745806905502,0.0004242,93440.0,93439.0,0.02879541]
[1745806905916,0.0004242,93440.0,93439.0,0.12735541]
[1745806906136,0.0004242,93440.0,93439.0,0.12335541]
[1745806907363,0.0004242,93440.0,93439.0,0.12535541]
[1745806907603,0.0004242,93440.0,93439.0,0.12635541]
[1745806910250,0.0004242,93440.0,93439.0,0.1397939]
[1745806911024,0.0004242,93440.0,93439.0,0.12635541]
[1745806911706,0.0004242,93440.0,93439.0,0.01325456]
[1745806912410,0.02048861,93440.0,93439.0,0.01125456]
[1745806912732,0.06868861,93440.0,93439.0,0.01125456]
[1745806913099,0.06868861,93440.0,93439.0,0.01025456]
[1745806919052,0.11828861,93440.0,93439.0,0.01025456]
[1745806919251,0.11828861,93440.0,93439.0,0.002]
[1745806919447,0.45828861,93440.0,93439.0,0.002]
[1745806919648,0.54415634,93440.0,93439.0,0.002]
[1745806920501,0.54515634,93440.0,93439.0,0.002]
[1745806921179,0.74515634,93440.0,93439.0,0.002]
[1745806922822,0.45928861,93440.0,93439.0,0.002]
[1745806922961,0.36148861,93440.0,93439.0,0.002]
[1745806923164,0.36648861,93440.0,93439.0,0.002]
[1745806923368,0.02648861,93440.0,93439.0,0.002]
[1745806923917,0.02748861,93440.0,93439.0,0.002]
[1745806925876,0.02148861,93440.0,93439.0,0.002]
[1745806926319,0.02148861,93440.0,93439.0,0.01144826]
[1745806926730,0.02148861,93440.0,93439.0,0.03776975]
[1745806929459,0.0014242,93440.0,93439.0,0.03776975]
[1745806930220,0.0014242,93440.0,93439.0,0.02598911]
[1745806931302,0.0004242,93440.0,93439.0,0.02498911]
[1745806931558,0.02046492,93440.0,93439.0,0.02498911]
[1745806932150,0.02046512,93440.0,93439.0,0.02498911]
[1745806933528,0.02046512,93440.0,93439.0,0.01044826]
[1745806935141,0.06946512,93440.0,93439.0,0.01044826]
[1745806935347,0.06946512,93440.0,93439.0,0.002]
[1745806936649,0.20033285,93440.0,93439.0,0.002]
[1745806937004,0.54033285,93440.0,93439.0,0.002]
[1745806938623,0.54033285,93440.0,93439.0,0.001]
[1745806939295,0.54533285,93440.0,93439.0,0.001]
[1745806939529,0.56209507,93440.0,93439.0,0.001]
[1745806939889,0.54533285,93440.0,93439.0,0.001]
[1745806941975,0.65222299,93440.0,93439.0,0.001]
[1745806945259,0.54533285,93440.0,93439.0,0.001]
[1745806949288,0.95593285,93440.0,93439.0,0.001]
[1745806954345,0.97269556,93440.0,93439.0,0.001]
[1745806959942,0.95593285,93440.0,93439.0,0.001]
[1745806961983,0.74,93430.0,93429.0,0.006]
[1745806962187,0.82644047,93430.0,93429.0,0.006]
[1745806962402,0.84648139,93430.0,93429.0,0.006]
[1745806962613,0.93112953,93430.0,93429.0,0.006]
[1745806962814,0.84648139,93430.0,93429.0,0.006]
[1745806963117,0.2,93417.0,93416.0,0.1839615]
[1745806963411,0.4,93417.0,93416.0,0.19270784]
[1745806963642,0.4,93417.0,93416.0,0.24010784]
[1745806964063,0.42004092,93417.0,93416.0,0.24010784]
[1745806964903,0.42104092,93417.0,93416.0,0.24010784]
[1745806966421,0.42104092,93417.0,93416.0,0.15462634]
[1745806967056,0.42004092,93417.0,93416.0,0.15462634]
[1745806968160,0.42004092,93417.0,93416.0,0.19103498]
[1745806968383,0.02004092,93417.0,93416.0,0.23853498]
[1745806969038,0.2004242,93440.0,93416.0,0.34542512]
[1745806969259,0.2004242,93440.0,93418.0,0.01454085]
[1745806969476,0.2004242,93440.0,93423.0,0.01454085]
[1745806969759,0.02007277,93439.0,93426.0,0.0929]
[1745806969966,0.2,93430.0,93429.0,0.01454085]
[1745806970179,0.2,93430.0,93429.0,0.05954085]
[1745806970392,0.22007277,93430.0,93429.0,0.06819418]
[1745806971268,0.22007277,93430.0,93429.0,0.06919418]
[1745806971474,0.22007277,93430.0,93429.0,0.06819418]
[1745806971681,0.2,93430.0,93429.0,0.07019418]
[1745806972147,0.001,93439.0,93433.0,0.01454085]
[1745806972388,0.0004242,93440.0,93433.0,0.01454085]
[1745806972602,0.0004242,93440.0,93434.0,0.00865333]
[1745806972780,0.02004971,93438.0,93434.0,0.00865333]
[1745806972921,0.02004971,93438.0,93433.0,0.01454085]
[1745806973121,0.02004971,93437.0,93434.0,0.00865333]
[1745806973322,0.02004971,93436.0,93433.0,0.02816715]
[1745806973533,0.02004971,93436.0,93434.0,0.00865333]
[1745806973738,0.02004971,93436.0,93433.0,0.02816715]
[1745806973972,0.02004971,93435.0,93434.0,0.00865333]
[1745806974175,0.02004971,93435.0,93433.0,0.01454085]
[1745806974466,0.0004242,93440.0,93434.0,0.00865333]
[1745806974665,0.0004242,93440.0,93434.0,0.00965333]
[1745806974887,0.02004041,93439.0,93434.0,0.00965333]
[1745806975087,0.02004041,93439.0,93434.0,0.00865333]
[1745806975361,0.02004041,93439.0,93433.0,0.01554085]
[1745806975565,0.02004041,93438.0,93434.0,0.001]
[1745806975768,0.02004041,93438.0,93435.0,0.00865333]
[1745806975966,0.02004041,93438.0,93433.0,0.01554085]
[1745806976192,0.0004242,93440.0,93434.0,0.00865333]
[1745806979408,0.0004242,93440.0,93435.0,0.01454085]
[1745806979613,0.0004242,93440.0,93439.0,0.01454085]
[1745806979841,0.0004242,93440.0,93439.0,0.02689902]
[1745806980062,0.0004242,93440.0,93439.0,0.03555235]
[1745806981059,0.0004242,93440.0,93439.0,0.02519418]
[1745806981630,0.0004242,93440.0,93439.0,0.02719418]
[1745806982410,0.0004242,93440.0,93439.0,0.02919418]
[1745806982958,0.0004242,93440.0,93439.0,0.21783099]
[1745806983163,0.0004242,93440.0,93439.0,0.22826532]
[1745806983367,0.0004242,93440.0,93439.0,0.28254346]
[1745806985158,0.001,93442.0,93439.0,0.59094436]
[1745806985359,0.001,93442.0,93441.0,0.10854085]
[1745806985536,0.001,93442.0,93441.0,0.21543099]
[1745806985741,0.001,93442.0,93441.0,0.24864832]
[1745806987012,0.001,93442.0,93441.0,0.25264832]
[1745806988244,0.001,93442.0,93441.0,0.25564832]
[1745806989099,0.024,93449.0,93441.0,0.20694832]
[1745806989296,0.024,93449.0,93443.0,0.05984085]
[1745806989500,0.024,93449.0,93445.0,0.01454085]
[1745806989850,0.024,93449.0,93445.0,0.17922617]
[1745806990289,0.024,93449.0,93445.0,0.18136623]
[1745806990753,0.00046997,93446.0,93445.0,0.18136623]
[1745806991144,0.00046997,93446.0,93445.0,0.18336623]
[1745806991346,0.00046997,93446.0,93445.0,0.20918838]
[1745806992311,0.00046997,93446.0,93445.0,0.21218838]
[1745806993754,0.00046997,93446.0,93445.0,0.31038838]
[1745806993961,0.00046997,93446.0,93445.0,0.30824832]
[1745807003700,0.00046997,93446.0,93445.0,0.21004832]
[1745807003904,0.00046997,93446.0,93445.0,0.31038838]
[1745807004081,0.00046997,93446.0,93445.0,0.30824832]
[1745807005026,0.00046997,93446.0,93445.0,0.30324832]
[1745807005227,0.00046997,93446.0,93445.0,0.31124832]
[1745807006300,0.00046997,93446.0,93445.0,0.35654832]
[1745807008160,0.00046997,93446.0,93445.0,0.75934922]
[1745807008576,0.024,93449.0,93445.0,0.70994922]
[1745807008728,0.024,93449.0,93447.0,0.06394085]
[1745807009103,0.024,93449.0,93448.0,0.18031929]
[1745807011078,0.024,93449.0,93448.0,0.18331929]
[1745807011900,0.024,93449.0,93448.0,0.18531929]
[1745807013586,0.024,93449.0,93448.0,0.23516764]
[1745807013790,0.024,93449.0,93448.0,0.25784996]
[1745807013990,0.024,93449.0,93448.0,0.75873086]
[1745807015844,0.024,93449.0,93448.0,0.76868184]
[1745807016706,0.024,93449.0,93448.0,0.75873086]
[1745807017914,0.024,93449.0,93448.0,0.70888251]
[1745807019054,0.024,93449.0,93448.0,0.56230251]
[1745807019459,0.024,93449.0,93448.0,0.53895152]
[1745807019740,0.024,93449.0,93448.0,0.55349237]
[1745807019957,0.024,93449.0,93448.0,0.15069147]
[1745807020154,0.024,93449.0,93448.0,0.14769147]
[1745807020290,0.024,93449.0,93448.0,0.12286932]
[1745807020492,0.024,93449.0,93448.0,0.12486932]
[1745807021083,0.024,93449.0,93448.0,0.12286932]
[1745807021442,0.024,93449.0,93448.0,0.12386932]
[1745807025040,0.024,93449.0,93448.0,0.02578932]
[1745807025263,0.024,93449.0,93448.0,0.12386932]
[1745807025446,0.024,93449.0,93448.0,0.14136136]
[1745807027974,0.024,93449.0,93448.0,0.2482515]
[1745807032715,0.024,93449.0,93448.0,0.2977515]
[1745807035771,0.024,93449.0,93448.0,0.3437515]
[1745807036946,0.024,93449.0,93448.0,0.3417515]
[1745807037208,0.024,93449.0,93448.0,0.3407515]
[1745807037344,0.024,93449.0,93448.0,0.3437515]
[1745807037550,0.024,93449.0,93448.0,0.3457515]
[1745807041221,0.024,93449.0,93448.0,0.3407515]
[1745807041465,0.024,93449.0,93448.0,0.3447515]
[1745807041688,0.024,93449.0,93448.0,0.3486315]
[1745807041839,0.024,93449.0,93448.0,0.3406315]
[1745807042364,0.024,93449.0,93448.0,0.3496315]
[1745807043370,0.024,93449.0,93448.0,0.7524324]
[1745807044793,0.024,93449.0,93448.0,0.6544724]
[1745807044995,0.024,93449.0,93448.0,0.42004937]
[1745807045198,0.000424,93453.0,93448.0,0.51800937]
[1745807045949,0.000424,93453.0,93449.0,0.01454085]
[1745807046297,0.000424,93453.0,93451.0,0.01454085]
[1745807046487,0.000424,93453.0,93452.0,0.12934482]
[1745807047717,0.000424,93453.0,93452.0,0.13034482]
[1745807048311,0.000424,93453.0,93452.0,0.13234482]
[1745807048509,0.000424,93453.0,93452.0,0.13134482]
[1745807048918,0.000424,93453.0,93452.0,0.13334482]
[1745807049270,0.000424,93453.0,93452.0,0.53414572]
[1745807049552,0.000424,93453.0,93452.0,0.60251029]
[1745807050587,0.000424,93453.0,93452.0,0.60651029]
[1745807051895,0.000424,93453.0,93452.0,0.70447029]
[1745807052893,0.000424,93453.0,93452.0,0.79657029]
[1745807054084,0.000424,93453.0,93452.0,0.79057029]
[1745807054303,0.000424,93453.0,93452.0,0.79457029]
[1745807054584,0.000424,93453.0,93452.0,0.79757029]
[1745807056730,0.000424,93453.0,93452.0,0.69961029]
[1745807056902,0.000424,93453.0,93452.0,0.79757029]
[1745807064000,0.000424,93453.0,93452.0,0.69867535]
[1745807064196,0.000424,93453.0,93452.0,0.79663535]
[1745807065234,0.000424,93453.0,93452.0,0.79363535]
[1745807066764,0.000424,93453.0,93452.0,0.79463535]
[1745807067107,0.000424,93453.0,93452.0,1.14063535]
[1745807068155,0.0004241,93458.0,93452.0,1.14063535]
[1745807068387,0.00047319,93458.0,93457.0,0.55243099]
[1745807068785,0.00047319,93458.0,93457.0,0.55998217]
[1745807070093,0.00047319,93458.0,93457.0,0.96778307]
[1745807070274,0.0004241,93464.0,93460.0,0.44684085]
[1745807070477,0.0004241,93464.0,93461.0,0.34]
[1745807070621,0.0004241,93464.0,93463.0,0.55373099]
[1745807071019,0.004,93469.0,93464.0,0.35454085]
[1745807071214,0.00404586,93469.0,93468.0,0.55533099]
[1745807071420,0.00404586,93469.0,93468.0,0.56284472]
[1745807071867,0.0004242,93491.0,93469.0,0.35454085]
[1745807072070,0.0004242,93491.0,93471.0,0.60533029]
[1745807072281,0.01464365,93472.0,93471.0,0.60533029]
[1745807072489,0.01464365,93472.0,93471.0,0.61279048]
[1745807072716,0.0004242,93491.0,93473.0,0.06454015]
[1745807072863,0.0004242,93491.0,93473.0,0.56679007]
[1745807073045,0.0004242,93491.0,93473.0,0.62728376]
[1745807073745,0.0004242,93491.0,93473.0,0.63960893]
[1745807073917,0.0004242,93491.0,93473.0,0.63532093]
[1745807074150,0.0004242,93491.0,93473.0,0.67462078]
[1745807074545,0.0004242,93491.0,93473.0,0.69716163]
[1745807075418,0.0004242,93491.0,93474.0,0.40324085]
[1745807075651,0.0004242,93491.0,93484.0,0.40324085]
[1745807075829,0.0004242,93491.0,93486.0,0.01454085]
[1745807076027,0.0004242,93491.0,93488.0,0.01454085]
[1745807076232,0.0004242,93491.0,93488.0,0.12143099]
[1745807076435,0.0004242,93491.0,93488.0,0.12885714]
[1745807076634,0.0004242,93491.0,93488.0,0.18082675]
[1745807077029,0.0004242,93491.0,93488.0,0.29174183]
[1745807077229,0.0004242,93491.0,93488.0,0.28960292]
[1745807077631,0.0004242,93491.0,93488.0,0.29260292]
[1745807077875,0.00404587,93489.0,93488.0,0.29260292]
[1745807078646,0.00404587,93489.0,93488.0,0.34110292]
[1745807079037,0.00404587,93489.0,93488.0,0.34510292]
[1745807081332,0.00404587,93489.0,93488.0,1.08790382]
[1745807081529,0.00404587,93489.0,93488.0,1.13660382]
[1745807082052,0.0004242,93491.0,93488.0,1.13660382]
[1745807082053,0.0004242,93491.0,93490.0,0.01454085]
[1745807082254,0.004,93509.0,93502.0,0.001]
[1745807082454,0.00404586,93509.0,93508.0,0.46143099]
[1745807082860,0.00404586,93509.0,93508.0,0.46844722]
[1745807083508,0.000424,93527.0,93514.0,0.01454085]
[1745807083711,0.00052868,93525.0,93524.0,0.12143099]
[1745807083911,0.00052868,93525.0,93524.0,0.14260848]
[1745807084284,0.00052868,93525.0,93524.0,0.48260848]
[1745807084491,0.00052868,93525.0,93524.0,0.52917059]
[1745807084886,0.00052868,93525.0,93524.0,0.53936115]
[1745807085101,0.00052868,93525.0,93524.0,0.49066115]
[1745807085306,0.00052868,93525.0,93524.0,0.24846115]
[1745807085653,0.00052868,93525.0,93524.0,0.1239772]
[1745807085791,0.00052868,93525.0,93524.0,0.23845628]
[1745807085993,0.00052868,93525.0,93524.0,0.23631805]
[1745807086193,0.00052868,93525.0,93524.0,0.23931805]
[1745807087415,0.00052868,93525.0,93524.0,0.64211895]
[1745807087719,0.00052868,93525.0,93524.0,0.69408856]
[1745807090799,0.2454,93554.0,93525.0,0.01454085]
[1745807091000,0.00104583,93542.0,93527.0,0.01454085]
[1745807091165,0.00104583,93542.0,93529.0,0.01454085]
[1745807091494,0.00104583,93542.0,93531.0,0.01454085]
[1745807091696,0.00104583,93542.0,93533.0,0.01454085]
[1745807091896,0.00104583,93542.0,93535.0,0.01454085]
[1745807092101,0.00104583,93542.0,93535.0,0.12143099]
[1745807092308,0.00104583,93542.0,93537.0,0.01454085]
[1745807092689,0.00104583,93542.0,93539.0,0.01454085]
[1745807092889,0.00104583,93542.0,93539.0,0.02863135]
[1745807093146,0.00104583,93542.0,93540.0,0.00683272]
[1745807093359,0.00104583,93542.0,93539.0,0.02863135]
[1745807093535,0.00104583,93542.0,93541.0,0.00683272]
[1745807093739,0.00104583,93542.0,93539.0,0.02863135]
[1745807093945,0.00104583,93542.0,93540.0,0.0198729]
[1745807097258,0.00104583,93542.0,93540.0,0.00683272]
[1745807097465,0.0974,93541.0,93540.0,0.00683272]
[1745807097804,0.0974,93541.0,93535.0,0.0978]
[1745807098147,0.0974,93541.0,93536.0,0.00549939]
[1745807099595,0.2,93534.0,93533.0,0.0978]
[1745807100288,0.2,93534.0,93524.0,0.00817132]
[1745807100496,0.2,93524.0,93510.0,0.04967594]
[1745807100701,0.2,93524.0,93520.0,0.0978]
[1745807102326,0.2,93524.0,93510.0,0.04967594]
[1745807102327,0.2,93524.0,93521.0,0.10317939]
[1745807102534,0.2,93524.0,93521.0,0.11111307]
[1745807102535,0.0456,93523.0,93521.0,0.11111307]
[1745807102947,0.0486,93522.0,93521.0,0.01343307]
[1745807103962,0.0486,93522.0,93521.0,0.00793368]
[1745807104163,0.2452,93511.0,93510.0,0.09768]
[1745807104369,0.2452,93511.0,93510.0,0.10317939]
[1745807104370,0.2934,93511.0,93510.0,0.10317939]
[1745807104569,0.31336229,93511.0,93510.0,0.10317939]
[1745807104809,0.31336229,93511.0,93510.0,0.09768]
[1745807105207,0.31336229,93511.0,93510.0,0.10317939]
[1745807105410,0.31336229,93511.0,93510.0,0.10363807]
[1745807105760,0.51336229,93511.0,93510.0,0.10363807]
[1745807105960,0.51336229,93511.0,93510.0,0.09813868]
[1745807106163,0.59516711,93511.0,93510.0,0.09813868]
[1745807107786,0.59516711,93511.0,93510.0,0.00045868]
[1745807108235,0.59816711,93511.0,93510.0,0.00045868]
[1745807108671,0.93816711,93511.0,93510.0,0.00045868]
[1745807111551,0.93916711,93511.0,93510.0,0.00045868]
[1745807119674,1.34976711,93511.0,93510.0,0.00039848]
[1745807135989,1.25636711,93511.0,93510.0,0.00039848]
[1745807137359,0.84576711,93511.0,93510.0,0.00039848]
[1745807146946,0.42396229,93511.0,93510.0,0.04859848]
[1745807147153,0.42396229,93511.0,93510.0,0.05488045]
[1745807147503,0.76396229,93511.0,93510.0,0.05488045]
[1745807147870,0.56396229,93511.0,93510.0,0.05996653]
[1745807148055,0.22096229,93511.0,93510.0,0.09839848]
[1745807148440,0.22096229,93511.0,93510.0,0.10464129]
[1745807149598,0.22296229,93511.0,93510.0,0.10464129]
[1745807149800,0.22296229,93511.0,93510.0,0.09839848]
[1745807149996,0.22296229,93511.0,93510.0,0.1065828]
[1745807150981,0.22296229,93511.0,93510.0,0.1085828]
[1745807151363,0.22296229,93511.0,93510.0,0.11944108]
[1745807152188,0.22296229,93511.0,93510.0,0.1085828]
[1745807160879,0.22296229,93511.0,93510.0,0.0115828]
[1745807161422,0.22296229,93511.0,93510.0,0.00539848]
[1745807162383,0.22296229,93511.0,93510.0,0.00339848]
[1745807162832,0.22096229,93511.0,93510.0,0.00239848]
[1745807163011,0.22096229,93511.0,93510.0,0.00439848]
[1745807163192,0.22096229,93511.0,93510.0,0.00139848]
[1745807163604,0.22196229,93511.0,93510.0,0.00139848]
[1745807165243,0.64376711,93511.0,93510.0,0.00139848]
[1745807166044,0.56196229,93511.0,93510.0,0.00139848]
[1745807166563,0.56096229,93511.0,93510.0,0.00139848]
[1745807167166,0.56396229,93511.0,93510.0,0.00139848]
[1745807167370,0.56096229,93511.0,93510.0,0.00139848]
[1745807167727,0.56196229,93511.0,93510.0,0.00139848]
[1745807170511,0.56202106,93511.0,93510.0,0.00139848]
[1745807171559,0.22102106,93511.0,93510.0,0.01013833]
[1745807172568,0.02102106,93511.0,93510.0,0.04919848]
[1745807172800,0.02102106,93511.0,93510.0,0.05534261]
[1745807173649,0.001,93511.0,93510.0,0.05534261]
[1745807173815,0.001,93511.0,93510.0,0.10474261]
[1745807174055,0.2,93521.0,93511.0,0.0466]
[1745807174278,0.2,93521.0,93513.0,0.0466]
[1745807174671,0.020027,93520.0,93513.0,0.0466]
[1745807174825,0.020027,93520.0,93512.0,0.01035426]
[1745807174826,0.020027,93520.0,93514.0,0.05480439]
[1745807175230,0.020027,93519.0,93514.0,0.05480439]
[1745807175642,0.020027,93518.0,93514.0,0.05480439]
[1745807175976,0.020027,93518.0,93515.0,0.01159571]
[1745807176173,0.020027,93517.0,93515.0,0.01159571]
[1745807176393,0.020027,93517.0,93516.0,0.00610439]
[1745807176559,0.001,93519.0,93516.0,0.00610439]
[1745807176755,0.2,93521.0,93516.0,0.00610439]
[1745807177119,0.02003158,93520.0,93516.0,0.00610439]
[1745807177325,0.05,93557.0,93516.0,0.00610439]
[1745807177326,0.0044239,93549.0,93520.0,0.01454085]
[1745807177526,0.000424,93563.0,93540.0,0.01454085]
[1745807177780,0.000424,93563.0,93542.0,0.01454085]
[1745807177986,0.000424,93563.0,93544.0,0.01454085]
[1745807178135,0.0004238,93567.0,93545.0,0.00213765]
[1745807178708,0.0004238,93567.0,93547.0,0.01454085]
[1745807178952,0.00088292,93566.0,93549.0,0.01454085]
[1745807179147,0.001,93563.0,93551.0,0.01454085]
[1745807179365,0.001,93563.0,93553.0,0.01454085]
[1745807179535,0.001,93563.0,93553.0,0.12143099]
[1745807179773,0.001,93563.0,93555.0,0.01454085]
[1745807179971,0.00288292,93566.0,93555.0,0.01454085]
[1745807180176,0.00488292,93566.0,93556.0,0.02207415]
[1745807180381,0.00588292,93566.0,93556.0,0.02797868]
[1745807180758,0.00488292,93566.0,93556.0,0.02797868]
[1745807181184,0.00488292,93566.0,93557.0,0.09748]
[1745807181346,0.00088292,93566.0,93557.0,0.09748]
[1745807181544,0.00088292,93566.0,93558.0,0.00590453]
[1745807182961,0.00088292,93566.0,93558.0,0.00690453]
[1745807183771,0.00088292,93566.0,93558.0,0.001]
[1745807185057,0.00088292,93566.0,93557.0,0.09948]
[1745807185247,0.00088292,93566.0,93558.0,0.009948]
[1745807185430,0.00088292,93566.0,93559.0,0.00590453]
[1745807187788,0.00088292,93566.0,93559.0,0.10334453]
[1745807188186,0.2,93560.0,93559.0,0.09744]
[1745807188349,0.2,93560.0,93559.0,0.00567204]
[1745807188574,0.2,93560.0,93550.0,0.09744]
[1745807188775,0.2,93560.0,93551.0,0.00545184]
[1745807188979,0.34,93559.0,93551.0,0.00545184]
[1745807189199,0.34,93559.0,93550.0,0.09744]
[1745807189390,0.34,93559.0,93535.0,0.00213802]
[1745807189647,0.01988415,93558.0,93536.0,0.12071379]
[1745807189822,0.01988415,93558.0,93537.0,0.01454085]
[1745807190028,0.35988415,93559.0,93537.0,0.02271801]
[1745807190249,0.35988415,93559.0,93538.0,0.00545184]
[1745807190657,0.2,93555.0,93538.0,0.00545184]
[1745807190862,0.2,93550.0,93538.0,0.00545184]
[1745807191040,0.2,93550.0,93537.0,0.00817716]
[1745807191241,0.2,93550.0,93538.0,0.00545184]
[1745807191654,0.2,93550.0,93535.0,0.09744]
[1745807192279,0.01988415,93549.0,93537.0,0.001]
[1745807192451,0.01988415,93549.0,93536.0,0.00545184]
[1745807192650,0.01988415,93549.0,93538.0,0.002]
[1745807192880,0.01988415,93549.0,93539.0,0.00545184]
[1745807193243,0.01988415,93549.0,93536.0,0.02789733]
[1745807193440,0.01988415,93549.0,93537.0,0.00545184]
[1745807193841,0.01988415,93548.0,93537.0,0.00545184]
[1745807194243,0.01988415,93547.0,93539.0,0.001]
[1745807194628,0.01988415,93549.0,93540.0,0.00545184]
[1745807195282,0.01988415,93548.0,93540.0,0.00545184]
[1745807195644,0.01988415,93547.0,93540.0,0.00545184]
[1745807196280,0.01988415,93547.0,93540.0,0.00745184]
[1745807196639,0.01988415,93546.0,93540.0,0.00745184]
[1745807197014,0.01988415,93546.0,93540.0,0.00845184]
[1745807197312,0.01988415,93545.0,93540.0,0.00745184]
[1745807197514,0.01988415,93545.0,93540.0,0.00645184]
[1745807197872,0.01988415,93544.0,93540.0,0.00845184]
[1745807198081,0.01988415,93544.0,93540.0,0.01045184]
[1745807198293,0.01988415,93544.0,93540.0,0.00745184]
[1745807198479,0.01988415,93543.0,93540.0,0.00545184]
[1745807198675,0.01988415,93543.0,93540.0,0.01875243]
[1745807198900,0.01988415,93542.0,93540.0,0.01330059]
[1745807199106,0.01988415,93542.0,93541.0,0.00553021]
[1745807200768,0.01988415,93542.0,93541.0,0.00653021]
[1745807201829,0.01988415,93542.0,93541.0,0.00853021]
[1745807203911,0.01988415,93542.0,93541.0,0.06957106]
[1745807204324,0.01988415,93542.0,93541.0,0.17859912]
[1745807204519,0.00994312,93549.0,93542.0,0.01454085]
[1745807204722,0.00994312,93549.0,93544.0,0.01454085]
[1745807205067,0.00994312,93549.0,93546.0,0.01454085]
[1745807205257,0.00994312,93549.0,93546.0,0.12143099]
[1745807205637,0.00994312,93561.0,93548.0,0.01454085]
[1745807205829,0.00994312,93561.0,93548.0,0.03891891]
[1745807206020,0.01998819,93560.0,93549.0,0.00560743]
[1745807206637,0.01998819,93559.0,93549.0,0.00560743]
[1745807206855,0.02993131,93558.0,93549.0,0.00560743]
[1745807207516,0.01998819,93557.0,93549.0,0.00560743]
[1745807207719,0.01998819,93557.0,93549.0,0.01875419]
[1745807207916,0.00994312,93556.0,93549.0,0.01875419]
[1745807208346,0.01998819,93555.0,93549.0,0.01875419]
[1745807208744,0.01998819,93554.0,93549.0,0.01975419]
[1745807208942,0.01998819,93554.0,93549.0,0.02075419]
[1745807209361,0.01998819,93553.0,93549.0,0.02075419]
[1745807209950,0.01998819,93553.0,93549.0,0.00760743]
[1745807210121,0.01998819,93552.0,93549.0,0.00660743]
[1745807210279,0.01998819,93552.0,93549.0,0.00560743]
[1745807210480,0.01998819,93552.0,93549.0,0.00960743]
[1745807210684,0.01998819,93551.0,93549.0,0.00760743]
[1745807210881,0.01998819,93551.0,93549.0,0.00960743]
[1745807211230,0.34,93564.0,93549.0,0.00760743]
[1745807211425,0.34,93564.0,93549.0,0.01921643]
[1745807211656,0.02001338,93563.0,93549.0,0.02121643]
[1745807211804,0.02001338,93563.0,93549.0,0.01421643]
[1745807212134,0.02001338,93563.0,93549.0,0.01921643]
[1745807212335,0.03002007,93562.0,93549.0,0.01921643]
[1745807213189,0.02001338,93561.0,93549.0,0.01721643]
[1745807213535,0.01000669,93560.0,93551.0,0.0478]
[1745807213688,0.01000669,93560.0,93552.0,0.12143099]
[1745807213895,0.02001338,93559.0,93554.0,0.03054085]
[1745807214121,0.02001338,93559.0,93556.0,0.01454085]
[1745807214289,0.02001338,93559.0,93556.0,0.12143099]
[1745807214495,0.01000669,93560.0,93558.0,0.01454085]
[1745807215112,0.01000669,93560.0,93559.0,0.01905841]
[1745807215312,0.004,93569.0,93559.0,0.01905841]
[1745807215699,0.02001047,93565.0,93559.0,0.01905841]
[1745807215903,0.02001047,93564.0,93561.0,0.06424085]
[1745807216109,0.02001047,93564.0,93563.0,0.01454085]
[1745807216308,0.02001047,93564.0,93563.0,0.12143099]
[1745807216506,0.02001047,93564.0,93563.0,0.12589406]
[1745807216757,0.004,93569.0,93565.0,0.01454085]